bitfinex/quotes_SOLUSD_20260302
["timestamp","ask_amount","ask_price","bid_price","bid_amount"]
[1772477888819,4.5,87.407,87.372,28.61309233]
[1772477890222,4.5,87.428,87.39,10.77713232]
[1772477890430,4.5,87.419,87.38,10.77713232]
[1772477890605,4.5,87.409,87.372,28.61309233]
[1772477891330,4.5,87.407,87.372,28.61309233]
[1772477891528,4.5,87.407,87.371,11.44544528]
[1772477893128,4.5,87.407,87.371,40.05905849]
[1772477893307,4.5,87.405,87.371,40.05905849]
[1772477895226,28.59808765,87.419,87.371,40.05905849]
[1772477895227,4.5,87.403,87.371,40.05905849]
[1772477895430,4.5,87.403,87.371,11.44544528]
[1772477895734,40.04393391,87.404,87.341,11.44937658]
[1772477895735,4.5,87.389,87.341,11.44937658]
[1772477895934,4.5,87.379,87.341,11.44937658]
[1772477897230,4.5,87.379,87.34,10.77795715]
[1772477897231,0.28432314,87.366,87.32,10.77795715]
[1772477897438,4.5,87.349,87.312,40.0861279]
[1772477897614,9.53386618,87.408,87.312,40.0861279]
[1772477897615,28.60833841,87.388,87.341,4.32725824]
[1772477897811,11.44334969,87.387,87.351,4.32725824]
[1772477898118,11.44334969,87.387,87.342,4.32725824]
[1772477899034,0.28432314,87.386,87.32,4.32725824]
[1772477899214,11.44439739,87.379,87.341,15.77663482]
[1772477899414,40.05539087,87.379,87.341,15.77663482]
[1772477899632,4.42661283,87.378,87.341,11.44937658]
[1772477901630,4.42661283,87.378,87.309,1.14535729]
[1772477901631,4.42661283,87.359,87.329,11.45089493]
[1772477901842,4.42661283,87.359,87.324,11.45151171]
[1772477902230,10.77795715,87.37,87.331,4.32725824]
[1772477902231,4.42661283,87.368,87.331,4.32725824]
[1772477902635,4.42661283,87.368,87.324,11.45151171]
[1772477902935,4.42661283,87.368,87.34,10.77795715]
[1772477903616,4.42661283,87.368,87.34,15.10521539]
[1772477904517,11.4459693,87.367,87.341,11.44937658]
[1772477905336,4.42661283,87.366,87.34,4.32725824]
[1772477905638,4.42661283,87.366,87.341,11.44937658]
[1772477906133,4.42661283,87.375,87.342,4.32725824]
[1772477906332,15.86996252,87.387,87.36,8.35333357]
[1772477906751,4.42661283,87.379,87.341,11.44937658]
[1772477906921,40.05172393,87.387,87.36,4.02607533]
[1772477906922,4.42661283,87.386,87.36,4.02607533]
[1772477907542,15.87009347,87.386,87.36,4.02607533]
[1772477909024,4.42661283,87.385,87.329,1.14509498]
[1772477909351,4.42661283,87.369,87.321,4.32725824]
[1772477909642,4.42661283,87.359,87.321,4.32725824]
[1772477910546,4.42661283,87.359,87.313,40.08566879]
[1772477910547,4.42661283,87.369,87.331,4.32725824]
[1772477911062,11.44714851,87.358,87.322,11.45186779]
[1772477911238,4.42661283,87.357,87.323,4.32725824]
[1772477911825,10.78928649,87.34,87.308,3.69383402]
[1772477912024,11.44714851,87.358,87.22,0.2]
[1772477912025,4.3823467,87.328,87.22,4.52725824]
[1772477912224,4.3823467,87.328,87.21,13.04407879]
[1772477912225,4.3823467,87.249,87.21,0.2]
[1772477912540,4.3823467,87.249,87.194,9.59322568]
[1772477912541,4.33852323,87.219,87.19,1e-08]
[1772477912741,0.154302,87.211,87.19,1e-08]
[1772477913046,11.46591756,87.215,87.191,4.32725824]
[1772477913256,0.28432314,87.214,87.19,1e-08]
[1772477913554,11.46591756,87.215,87.19,1e-08]
[1772477914150,4.42661283,87.213,87.19,1e-08]
[1772477914353,4.42661283,87.213,87.14,10.05875831]
[1772477914354,4.42661283,87.213,87.17,10.78928649]
[1772477914523,4.42661283,87.211,87.17,10.78928649]
[1772477914727,4.42661283,87.211,87.14,10.05875831]
[1772477914728,4.71093597,87.209,87.15,10.98928649]
[1772477914935,4.71093597,87.199,87.16,10.78928649]
[1772477915145,15.89305628,87.211,87.18,10.78928649]
[1772477915450,4.71093597,87.199,87.15,0.2]
[1772477915829,4.42661283,87.182,87.15,1e-08]
[1772477916032,4.42661283,87.153,87.125,1e-08]
[1772477916252,0.14216157,87.169,87.125,1e-08]
[1772477916253,4.42661283,87.186,87.125,1e-08]
[1772477916437,4.71093597,87.176,87.14,10.78928649]
[1772477916640,4.42661283,87.176,87.14,10.78928649]
[1772477916829,4.42661283,87.176,87.15,10.78928649]
[1772477917034,4.42661283,87.176,87.141,4.32725824]
[1772477917234,11.47117866,87.175,87.141,4.32725824]
[1772477917438,15.89607272,87.189,87.16,10.78928649]
[1772477917665,11.46775839,87.201,87.17,10.78928649]
[1772477918581,11.46775839,87.201,87.161,4.32725824]
[1772477918766,4.42661283,87.202,87.17,10.78928649]
[1772477918933,4.42661283,87.201,87.161,4.32725824]
[1772477919138,31.69483932,87.205,87.18,10.78928649]
[1772477919641,4.42661283,87.203,87.17,10.78928649]
[1772477920339,4.42661283,87.203,87.18,10.78928649]
[1772477921245,31.69483932,87.205,87.18,15.11654473]
[1772477921544,10.78928649,87.36,87.191,0.28432314]
[1772477921744,10.78928649,87.36,87.195,0.28432314]
[1772477921745,10.78928649,87.29,87.195,0.28432314]
[1772477921946,4.5,87.269,87.23,10.78928649]
[1772477922157,4.5,87.269,87.204,0.28432314]
[1772477922158,4.5,87.267,87.22,10.78928649]
[1772477922461,4.5,87.263,87.22,10.78928649]
[1772477922759,4.5,87.249,87.2,10.78928649]
[1772477922945,4.5,87.247,87.21,10.78928649]
[1772477923150,4.5,87.245,87.21,10.78928649]
[1772477923342,4.5,87.243,87.21,10.78928649]
[1772477923543,4.5,87.241,87.211,11.46644345]
[1772477924255,4.5,87.239,87.194,11.46864062]
[1772477924445,4.5,87.237,87.2,10.78928649]
[1772477924643,4.5,87.235,87.2,10.78928649]
[1772477924867,4.5,87.233,87.2,10.78928649]
[1772477925441,4.5,87.253,87.22,10.78928649]
[1772477925652,4.5,87.253,87.197,0.28432314]
[1772477925936,4.5,87.253,87.22,10.78928649]
[1772477926759,4.5,87.253,87.23,10.78928649]
[1772477927061,45.80086106,87.335,87.198,1.14681529]
[1772477927062,4.5,87.274,87.24,10.78928649]
[1772477927241,4.5,87.274,87.25,10.78928649]
[1772477927643,4.5,87.274,87.251,11.46118669]
[1772477927839,4.5,87.299,87.251,11.46118669]
[1772477928141,4.5,87.297,87.251,11.46118669]
[1772477928568,4.5,87.293,87.251,11.46118669]
[1772477929768,4.5,87.291,87.26,10.78928649]
[1772477930065,4.5,87.302,87.26,10.78928649]
[1772477931151,4.5,87.302,87.261,11.45987325]
[1772477931654,4.5,87.3,87.261,11.45987325]
[1772477932366,4.5,87.299,87.261,11.45987325]
[1772477933762,4.5,87.298,87.261,11.45987325]
[1772477933966,4.5,87.298,87.261,40.10955638]
[1772477934283,4.5,87.325,87.261,40.10955638]
[1772477934561,4.5,87.315,87.27,10.78928649]
[1772477937467,4.5,87.3,87.271,11.45856011]
[1772477938166,10.78928649,87.31,87.271,40.1049604]
[1772477938167,4.5,87.31,87.271,40.1049604]
[1772477938365,7.18749201,87.326,87.28,10.78928649]
[1772477938366,4.5,87.323,87.28,10.78928649]
[1772477938582,4.5,87.319,87.271,40.1049604]
[1772477938768,4.5,87.317,87.27,10.78928649]
[1772477939078,4.5,87.317,87.28,10.78928649]
[1772477942857,4.5,87.309,87.271,61.6]
[1772477943051,4.5,87.309,87.272,11.45842882]
[1772477943370,4.5,87.309,87.28,10.78928649]
[1772477943869,28.62477952,87.337,87.272,40.10450087]
[1772477943870,4.5,87.343,87.3,10.78928649]
[1772477944075,10.78928649,87.37,87.32,15.14255836]
[1772477944256,10.78928649,87.36,87.311,4.35327187]
[1772477944662,10.78928649,87.36,87.32,10.78928649]
[1772477944858,10.78928649,87.38,87.33,10.78928649]
[1772477945058,10.78928649,87.39,87.35,10.78928649]
[1772477945658,10.78928649,87.39,87.341,4.35327187]
[1772477946064,4.35821563,87.389,87.35,10.78928649]
[1772477946369,4.35821563,87.389,87.341,4.35327187]
[1772477947268,4.35821563,87.387,87.342,11.44924549]
[1772477948782,4.35821563,87.387,87.35,10.78928649]
[1772477948956,4.35821563,87.387,87.342,11.44924549]
[1772477948957,4.35821563,87.393,87.349,4.35327187]
[1772477949154,11.44243311,87.394,87.35,10.78928649]
[1772477949155,4.35821563,87.389,87.35,10.78928649]
[1772477949469,4.35821563,87.387,87.351,11.44806584]
[1772477950170,4.35821563,87.387,87.36,10.78928649]
[1772477950370,4.35821563,87.387,87.352,4.35327187]
[1772477952170,4.35821563,87.385,87.35,10.78928649]
[1772477952466,4.35821563,87.385,87.351,11.44806584]
[1772477952666,4.35821563,87.385,87.351,15.80133771]
[1772477953263,22.46766832,87.48,87.371,4.35327187]
[1772477953264,4.35821563,87.429,87.371,4.35327187]
[1772477953485,4.35821563,87.429,87.38,15.14255836]
[1772477953486,4.35821563,87.428,87.38,15.14255836]
[1772477953670,4.35821563,87.428,87.39,10.78928649]
[1772477953876,4.35821563,87.422,87.38,10.78928649]
[1772477954472,4.35821563,87.42,87.38,10.77458024]
[1772477955996,4.35821563,87.42,87.381,4.45833929]
[1772477957081,4.28327691,87.418,87.381,11.44413545]
[1772477958609,4.28327691,87.418,87.38,10.77458024]
[1772477958893,4.28327691,87.418,87.38,22.21884022]
[1772477960395,4.30104888,87.416,87.38,10.77458024]
[1772477961992,4.30104888,87.416,87.381,11.44413545]
[1772477962582,4.30104888,87.414,87.381,11.44413545]
[1772477963192,4.30104888,87.423,87.39,10.77458024]
[1772477963399,4.30104888,87.429,87.364,3.69383402]
[1772477963631,24.57777306,87.366,87.248,5.97370209]
[1772477963792,2.60183433,87.389,87.31,10.77458024]
[1772477963793,0.28432314,87.365,87.31,10.77458024]
[1772477963997,31.6529168,87.384,87.32,10.77458024]
[1772477964293,4.30104888,87.369,87.305,57.33612192]
[1772477964500,0.28432314,87.366,87.331,4.49529735]
[1772477964680,0.28432314,87.366,87.33,10.77458024]
[1772477964681,3.69383402,87.373,87.34,4.49529735]
[1772477964879,40.05676615,87.376,87.34,4.49529735]
[1772477965482,40.05676615,87.376,87.322,11.45186779]
[1772477965483,11.44479033,87.376,87.35,10.77458024]
[1772477965687,11.44479033,87.376,87.351,4.49529735]
[1772477966601,40.05218226,87.386,87.351,4.49529735]
[1772477966781,4.30104888,87.384,87.33,11.45076998]
[1772477966981,10.77458024,87.34,87.3,10.77458024]
[1772477967283,4.58537202,87.339,87.249,1.14614494]
[1772477967593,4.30104888,87.329,87.29,10.77458024]
[1772477968903,4.30104888,87.327,87.291,4.49529735]
[1772477969692,4.30104888,87.346,87.311,4.49529735]
[1772477969898,4.30104888,87.346,87.32,10.77458024]
[1772477970098,11.44832797,87.349,87.32,10.77458024]
[1772477970304,11.44832797,87.349,87.321,4.49529735]
[1772477970506,4.30104888,87.348,87.31,15.26987759]
[1772477970993,4.83822137,87.369,87.311,4.49529735]
[1772477970994,4.30104888,87.346,87.311,4.49529735]
[1772477972078,4.58537202,87.339,87.281,4.49529735]
[1772477972282,4.30104888,87.319,87.281,4.49529735]
[1772477973098,4.30104888,87.338,87.301,4.49529735]
[1772477973289,4.30104888,87.338,87.31,15.26987759]
[1772477974199,4.30104888,87.338,87.295,4.49529735]
[1772477974503,4.30104888,87.336,87.295,4.49529735]
[1772477974807,4.30104888,87.329,87.29,10.77458024]
[1772477975007,4.30104888,87.329,87.291,4.49529735]
[1772477975294,4.30104888,87.336,87.301,4.49529735]
[1772477975495,11.45003206,87.336,87.301,4.49529735]
[1772477975698,4.30104888,87.335,87.301,4.49529735]
[1772477976299,4.30104888,87.329,87.282,4.49529735]
[1772477976490,4.30104888,87.329,87.29,15.26987759]
[1772477976684,4.30104888,87.329,87.29,10.77458024]
[1772477977194,4.30104888,87.329,87.277,4.49529735]
[1772477977195,10.77458024,87.32,87.28,10.77458024]
[1772477977397,4.30104888,87.309,87.267,4.49529735]
[1772477977793,4.30104888,87.309,87.27,10.77458024]
[1772477979290,4.30104888,87.307,87.27,10.77458024]
[1772477980081,4.30104888,87.307,87.27,22.23315119]
[1772477980886,4.30104888,87.307,87.271,4.49529735]
[1772477981090,1.14438735,87.318,87.291,4.49529735]
[1772477981288,4.58537202,87.319,87.281,4.49529735]
[1772477981485,4.58537202,87.317,87.271,4.49529735]
[1772477981685,4.30104888,87.309,87.271,4.49529735]
[1772477981885,4.30104888,87.308,87.271,4.49529735]
[1772477982402,5.44543623,87.307,87.271,4.49529735]
[1772477983204,4.30104888,87.306,87.271,4.49529735]
[1772477983400,11.4542289,87.304,87.271,4.49529735]
[1772477983599,4.30104888,87.303,87.271,4.49529735]
[1772477983810,4.30104888,87.299,87.266,34.61977754]
[1772477984108,4.30104888,87.299,87.267,11.45908533]
[1772477984307,4.30104888,87.299,87.266,39.11507489]
[1772477985484,11.45501615,87.298,87.267,4.49529735]
[1772477985692,1.14438735,87.303,87.267,4.49529735]
[1772477985693,4.30104888,87.325,87.291,4.49529735]
[1772477985906,1.14438735,87.324,87.3,10.77458024]
[1772477986129,4.30104888,87.334,87.31,10.77458024]
[1772477987107,11.45042538,87.333,87.31,10.77458024]
[1772477988010,1.14438735,87.334,87.31,10.77458024]
[1772477988815,11.45024696,87.335,87.31,10.77458024]
[1772477988816,1.14438735,87.342,87.312,4.35788825]
[1772477988986,1.14438735,87.342,87.32,10.77458024]
[1772477989186,7.17001419,87.343,87.32,10.77458024]
[1772477990120,7.17001419,87.343,87.321,11.45199894]
[1772477990414,7.17001419,87.343,87.32,10.77458024]
[1772477990995,7.17001419,87.343,87.314,4.35788825]
[1772477991202,1.14438735,87.359,87.331,4.35788825]
[1772477991499,1.14438735,87.358,87.331,4.35788825]
[1772477991714,4.08651744,87.368,87.331,4.35788825]
[1772477992005,4.08651744,87.366,87.331,4.35788825]
[1772477992211,11.44636234,87.364,87.333,4.35788825]
[1772477992408,1.14438735,87.363,87.333,4.35788825]
[1772477993790,4.08651744,87.362,87.33,10.77458024]
[1772477993990,4.08651744,87.36,87.324,4.35788825]
[1772477994190,4.08651744,87.356,87.324,4.35788825]
[1772477994413,4.08651744,87.354,87.324,4.35788825]
[1772477994620,4.08651744,87.352,87.32,10.77458024]
[1772477994790,4.08651744,87.35,87.32,10.77458024]
[1772477994991,4.08651744,87.35,87.321,11.45199894]
[1772477995492,4.08651744,87.35,87.32,15.13246849]
[1772477995694,4.08651744,87.35,87.32,26.58449371]
[1772477996923,4.08651744,87.35,87.321,4.35788825]
[1772477997413,11.44832797,87.349,87.321,4.35788825]
[1772478000422,11.44832797,87.349,87.32,22.22660546]
[1772478000423,1.14438735,87.359,87.323,4.35788825]
[1772478000611,1.14438735,87.359,87.322,40.08153728]
[1772478000612,1.14438735,87.36,87.331,4.35788825]
[1772478000801,1.14438735,87.36,87.33,10.77458024]
[1772478000802,4.08651744,87.38,87.342,4.35788825]
[1772478001002,40.05539087,87.379,87.342,4.35788825]
[1772478001225,4.08651744,87.377,87.342,4.35788825]
[1772478001625,4.37084058,87.359,87.32,10.77458024]
[1772478001808,4.37084058,87.349,87.31,10.77458024]
[1772478002518,11.44845903,87.348,87.32,10.77458024]
[1772478002821,11.44845903,87.348,87.311,11.45331057]
[1772478003629,11.44845903,87.348,87.312,4.35788825]
[1772478004323,4.37084058,87.339,87.294,4.35788825]
[1772478004526,4.08651744,87.317,87.277,4.35788825]
[1772478004708,4.08651744,87.309,87.277,4.35788825]
[1772478004908,40.07878343,87.328,87.281,4.35788825]
[1772478004909,4.08651744,87.319,87.281,4.35788825]
[1772478005111,15.53759842,87.328,87.291,4.35788825]
[1772478006722,15.53759842,87.328,87.293,4.35788825]
[1772478007304,4.08651744,87.327,87.293,4.35788825]
[1772478009129,4.08651744,87.325,87.293,4.35788825]
[1772478009524,4.08651744,87.325,87.268,28.64738366]
[1772478009525,4.08651744,87.325,87.283,4.35788825]
[1772478009923,4.08651744,87.325,87.26,3.69383402]
[1772478009924,11.45134324,87.326,87.291,4.35788825]
[1772478010129,0.28432314,87.339,87.308,4.35788825]
[1772478010317,4.08651744,87.337,87.301,4.35788825]
[1772478011430,4.08651744,87.329,87.28,10.77458024]
[1772478011740,4.08651744,87.329,87.291,4.35788825]
[1772478012814,4.08651744,87.329,87.29,10.77458024]
[1772478013725,4.08651744,87.327,87.291,11.45593474]
[1772478014329,102.7,87.353,87.301,4.35788825]
[1772478014330,4.37084058,87.339,87.301,4.35788825]
[1772478014642,4.08651744,87.336,87.301,4.35788825]
[1772478015442,4.08651744,87.344,87.32,10.79368425]
[1772478015617,11.44911441,87.343,87.32,10.79368425]
[1772478015819,4.08651744,87.342,87.31,10.79368425]
[1772478016239,4.08651744,87.342,87.32,10.79368425]
[1772478016428,4.46386266,87.358,87.32,10.79368425]
[1772478016832,4.46386266,87.358,87.34,10.79368425]
[1772478017137,4.46386266,87.363,87.33,10.79368425]
[1772478018237,11.44662439,87.362,87.331,11.45068761]
[1772478018424,4.3938624,87.361,87.331,11.45068761]
[1772478021227,11.44595896,87.368,87.34,10.79368425]
[1772478021427,102.7,87.374,87.341,4.41413915]
[1772478021428,11.44518329,87.373,87.341,4.41413915]
[1772478021633,4.3938624,87.372,87.341,4.41413915]
[1772478021833,4.3938624,87.372,87.34,10.79368425]
[1772478023624,4.3938624,87.37,87.331,11.45068761]
[1772478023824,4.3938624,87.37,87.341,4.41413915]
[1772478025141,4.3938624,87.37,87.34,10.79368425]
[1772478026745,102.7,87.374,87.332,4.41413915]
[1772478026746,4.3938624,87.368,87.332,4.41413915]
[1772478027045,4.3938624,87.368,87.333,15.86456453]
[1772478027249,4.3938624,87.366,87.313,1.14530482]
[1772478027546,4.3938624,87.359,87.314,11.45291705]
[1772478028332,4.3938624,87.359,87.32,10.79368425]
[1772478029155,4.3938624,87.357,87.321,11.45199894]
[1772478030855,4.3938624,87.357,87.32,22.24581434]
[1772478031339,4.3938624,87.355,87.32,22.24581434]
[1772478031554,4.3938624,87.355,87.295,61.6]
[1772478031555,4.3938624,87.355,87.311,4.41413915]
[1772478031737,4.3938624,87.336,87.29,10.79368425]
[1772478032940,4.3938624,87.336,87.29,15.2078234]
[1772478033262,4.3938624,87.334,87.291,11.45593474]
[1772478033431,4.67818554,87.329,87.283,11.45698475]
[1772478033631,4.67818554,87.329,87.29,10.79368425]
[1772478034435,4.67818554,87.329,87.3,10.79368425]
[1772478034630,4.67818554,87.329,87.29,10.79368425]
[1772478034851,4.67818554,87.329,87.284,4.41413915]
[1772478035246,4.67818554,87.329,87.28,10.79368425]
[1772478035247,4.3938624,87.299,87.251,4.41413915]
[1772478035453,4.3938624,87.299,87.26,10.79368425]
[1772478035835,0.28432314,87.298,87.26,10.79368425]
[1772478036033,10.79368425,87.28,87.242,36.32237156]
[1772478036233,4.3938624,87.279,87.251,4.41413915]
[1772478036558,11.45370412,87.308,87.271,4.41413915]
[1772478036857,11.45370412,87.308,87.281,4.41413915]
[1772478037956,0.28432314,87.317,87.283,4.41413915]
[1772478038159,10.79368425,87.33,87.291,4.41413915]
[1772478038160,11.45094985,87.329,87.291,4.41413915]
[1772478038343,11.45094985,87.329,87.282,11.45711601]
[1772478038344,11.45094985,87.329,87.301,4.41413915]
[1772478038677,11.22187183,87.329,87.301,4.41413915]
[1772478039054,4.3938624,87.328,87.301,4.41413915]
[1772478039839,4.3938624,87.328,87.291,4.41413915]
[1772478043263,4.3938624,87.326,87.292,11.45580351]
[1772478043456,4.3938624,87.326,87.293,4.41413915]
[1772478043664,11.45003068,87.337,87.311,4.41413915]
[1772478044663,15.84389308,87.337,87.311,4.41413915]
[1772478044962,4.3938624,87.346,87.313,4.41413915]
[1772478045138,4.3938624,87.329,87.282,4.41413915]
[1772478045343,4.3938624,87.329,87.291,4.41413915]
[1772478045540,4.3938624,87.329,87.3,10.79368425]
[1772478046067,4.3938624,87.329,87.291,4.41413915]
[1772478047047,4.3938624,87.327,87.293,4.41413915]
[1772478048265,4.29077734,87.309,87.27,15.25644211]
[1772478048465,4.29077734,87.309,87.272,4.46275786]
[1772478049551,4.29077734,87.316,87.281,4.46275786]
[1772478051174,11.73527299,87.329,87.301,4.46275786]
[1772478051357,4.29077734,87.327,87.301,4.46275786]
[1772478051555,4.29077734,87.325,87.281,15.92000514]
[1772478051763,4.29077734,87.325,87.282,4.46275786]
[1772478052363,4.29077734,87.325,87.291,4.46275786]
[1772478054760,4.29077734,87.323,87.291,4.46275786]
[1772478055162,4.29077734,87.323,87.292,11.45580351]
[1772478055362,4.29077734,87.323,87.293,4.46275786]
[1772478055764,4.57510048,87.319,87.26,11.46000458]
[1772478055968,4.57510048,87.309,87.27,10.79368425]
[1772478056168,4.29077734,87.299,87.263,4.46275786]
[1772478057079,4.29077734,87.297,87.27,10.79368425]
[1772478057455,4.29077734,87.297,87.265,4.46275786]
[1772478057662,4.29077734,87.297,87.26,10.79368425]
[1772478058457,4.29077734,87.297,87.26,4.03362382]
[1772478059067,40.09347507,87.296,87.26,4.03362382]
[1772478059283,40.09347507,87.296,87.26,15.49350043]
[1772478059284,4.29077734,87.295,87.26,15.49350043]
[1772478059482,4.29077734,87.295,87.261,4.46275786]
[1772478059682,11.45527859,87.296,87.271,4.46275786]
[1772478061212,4.29077734,87.301,87.273,4.46275786]
[1772478061360,102.7,87.325,87.291,4.46275786]
[1772478061561,4.29077734,87.34,87.31,4.03362382]
[1772478061782,4.29077734,87.339,87.301,4.46275786]
[1772478061964,4.29077734,87.337,87.301,4.46275786]
[1772478063084,4.03362382,87.34,87.301,4.46275786]
[1772478063085,4.29077734,87.335,87.301,4.46275786]
[1772478063870,4.29077734,87.335,87.303,4.46275786]
[1772478065167,4.29077734,87.333,87.303,4.46275786]
[1772478065776,4.29077734,87.333,87.304,11.4542289]
[1772478066088,0.28432314,87.348,87.311,4.46275786]
[1772478066271,4.57510048,87.348,87.311,4.46275786]
[1772478066699,4.29077734,87.339,87.311,4.46275786]
[1772478067377,11.44976985,87.338,87.312,11.4531794]
[1772478067994,11.44976985,87.338,87.313,4.46275786]
[1772478069889,11.44976985,87.338,87.28,61.32025583]
[1772478069890,4.57510048,87.319,87.291,4.46275786]
[1772478070079,4.57510048,87.319,87.281,4.46275786]
[1772478070282,4.29077734,87.329,87.291,4.46275786]
[1772478070489,4.29077734,87.327,87.291,4.46275786]
[1772478071075,4.29077734,87.319,87.291,4.46275786]
[1772478071487,0.28432314,87.327,87.291,4.46275786]
[1772478071684,0.28432314,87.327,87.292,11.45580351]
[1772478071685,11.45134324,87.326,87.292,11.45580351]
[1772478071990,11.45134324,87.326,87.301,4.46275786]
[1772478072393,4.29077734,87.325,87.28,4.03362382]
[1772478072699,4.29077734,87.309,87.274,11.45807981]
[1772478073483,4.29077734,87.309,87.275,4.46275786]
[1772478073685,4.29077734,87.309,87.281,4.46275786]
[1772478074180,4.29077734,87.318,87.283,4.46275786]
[1772478074373,4.29077734,87.316,87.283,4.46275786]
[1772478074597,4.29077734,87.316,87.275,4.46275786]
[1772478074784,4.29077734,87.309,87.28,4.03362382]
[1772478074983,4.29077734,87.309,87.281,4.46275786]
[1772478076293,15.57854059,87.308,87.281,15.91995149]
[1772478076689,4.12483647,87.312,87.282,4.34717587]
[1772478078798,15.77678613,87.311,87.284,4.25210488]
[1772478079098,4.32347556,87.31,87.284,4.25210488]
[1772478079681,4.32347556,87.31,87.271,4.25210488]
[1772478079889,4.32347556,87.31,87.27,15.49049111]
[1772478080101,4.32347556,87.309,87.27,15.49049111]
[1772478080704,4.32347556,87.309,87.28,4.03189574]
[1772478080903,4.32347556,87.307,87.281,11.45724728]
[1772478082298,4.32347556,87.307,87.281,15.70935216]
[1772478082490,4.32347556,87.307,87.282,4.25210488]
[1772478083093,11.4539665,87.306,87.283,11.45698475]
[1772478084094,11.4539665,87.306,87.284,4.25210488]
[1772478085906,4.32347556,87.305,87.275,4.25210488]
[1772478086105,4.32347556,87.313,87.29,4.03189574]
[1772478086285,4.32347556,87.32,87.291,4.25210488]
[1772478086800,11.44963876,87.339,87.301,4.25210488]
[1772478086999,40.07373566,87.339,87.301,4.25210488]
[1772478087315,0.28432314,87.338,87.303,4.25210488]
[1772478087488,40.07373566,87.339,87.303,4.25210488]
[1772478087907,0.28432314,87.338,87.303,4.25210488]
[1772478088708,4.32347556,87.337,87.303,4.25210488]
[1772478089292,4.32347556,87.335,87.303,4.25210488]
[1772478090891,4.32347556,87.335,87.305,4.25210488]
[1772478091297,4.32347556,87.333,87.305,4.25210488]
[1772478091809,4.32347556,87.333,87.297,4.25210488]
[1772478092011,4.32347556,87.333,87.299,4.25210488]
[1772478092710,4.32347556,87.333,87.301,4.25210488]
[1772478094413,40.07602995,87.334,87.301,4.25210488]
[1772478094414,4.32347556,87.331,87.302,4.25210488]
[1772478097114,4.32347556,87.329,87.302,4.25210488]
[1772478098013,11.45081873,87.33,87.302,4.25210488]
[1772478098215,11.45081873,87.33,87.3,4.03189574]
[1772478098216,11.45081873,87.33,87.304,4.25210488]
[1772478098422,4.32347556,87.329,87.297,4.25210488]
[1772478099199,40.07786556,87.33,87.29,4.03189574]
[1772478099200,4.32347556,87.327,87.299,4.25210488]
[1772478102830,4.6077987,87.309,87.251,4.25210488]
[1772478103026,4.32347556,87.289,87.251,4.25210488]
[1772478103921,1.14586914,87.316,87.281,4.25210488]
[1772478104129,5.4693447,87.319,87.291,4.25210488]
[1772478104333,1.14586914,87.319,87.291,4.25210488]
[1772478104507,4.32347556,87.324,87.291,4.25210488]
[1772478104828,1.14586914,87.323,87.291,4.25210488]
[1772478105903,11.45186779,87.322,87.292,4.25210488]
[1772478106108,1.14586914,87.321,87.292,4.25210488]
[1772478106334,5.4693447,87.321,87.292,4.25210488]
[1772478106505,4.32347556,87.319,87.292,4.25210488]
[1772478106824,4.32347556,87.317,87.292,4.25210488]
[1772478107032,1.14586914,87.316,87.292,4.25210488]
[1772478107734,1.14586914,87.316,87.293,4.20842481]
[1772478107915,1.14586914,87.316,87.261,4.20842481]
[1772478107916,4.78002653,87.309,87.261,4.20842481]
[1772478108119,4.78002653,87.307,87.262,4.20842481]
[1772478108509,4.78002653,87.307,87.261,40.10955638]
[1772478108510,11.45147437,87.325,87.281,4.20842481]
[1772478108712,1.14586914,87.324,87.281,4.20842481]
[1772478109207,5.64157253,87.324,87.281,4.20842481]
[1772478109407,1.14586914,87.324,87.281,4.20842481]
[1772478109615,4.49570339,87.323,87.281,4.20842481]
[1772478109939,4.49570339,87.289,87.258,4.20842481]
[1772478110607,4.03189574,87.29,87.25,4.03189574]
[1772478110608,4.49570339,87.287,87.25,4.20842481]
[1772478111121,4.78002653,87.279,87.241,4.20842481]
[1772478112118,4.78002653,87.277,87.241,4.20842481]
[1772478112431,4.78002653,87.269,87.221,4.20842481]
[1772478112614,0.28432314,87.277,87.213,4.20842481]
[1772478112615,4.49570339,87.247,87.213,4.20842481]
[1772478112819,4.49570339,87.239,87.21,0.2]
[1772478113009,0.28432314,87.247,87.211,4.20842481]
[1772478113213,4.49570339,87.257,87.221,4.20842481]
[1772478114333,4.49570339,87.257,87.22,4.03189574]
[1772478114334,11.46052993,87.256,87.223,4.20842481]
[1772478114519,15.95623332,87.256,87.223,4.20842481]
[1772478114720,4.49570339,87.255,87.223,4.20842481]
[1772478115813,4.49570339,87.253,87.223,4.20842481]
[1772478116217,4.49570339,87.253,87.22,4.03189574]
[1772478116423,4.49570339,87.253,87.221,4.20842481]
[1772478118027,1.14586914,87.278,87.214,4.20842481]
[1772478118028,4.49570339,87.249,87.214,4.20842481]
[1772478118216,4.49570339,87.247,87.214,4.20842481]
[1772478119838,0.28432314,87.248,87.2,0.2]
[1772478119839,4.49570339,87.229,87.2,0.2]
[1772478120036,4.49570339,87.227,87.2,0.2]
[1772478120221,11.46336998,87.235,87.201,11.46775839]